bitfinex/quotes_SOLUSD_20250719
["timestamp","ask_amount","ask_price","bid_price","bid_amount"]
[1752968119430,0.06,176.7,176.69,26.14540507]
[1752968120518,0.1,176.71,176.69,26.14540507]
[1752968120724,0.1,176.71,176.7,43.12109124]
[1752968121101,0.1,176.71,176.7,48.7804008]
[1752968122109,0.06,176.72,176.71,16.78468397]
[1752968122309,0.06,176.72,176.71,19.89577521]
[1752968122638,0.06,176.72,176.71,20.48577521]
[1752968123229,0.06,176.72,176.71,26.14476451]
[1752968123616,0.06,176.74,176.73,24.63786645]
[1752968123823,0.06,176.78,176.74,16.78468397]
[1752968124016,0.06,176.78,176.77,19.89577521]
[1752968124216,0.06,176.78,176.77,59.33577521]
[1752968125334,0.06,176.78,176.77,65.58284371]
[1752968126044,0.06,176.78,176.77,64.99284371]
[1752968126212,0.06,176.78,176.77,59.33577521]
[1752968128422,0.73,176.78,176.77,59.31577521]
[1752968128618,0.06,176.78,176.77,59.31577521]
[1752968129408,0.06,176.78,176.77,16.78468397]
[1752968129642,0.73,176.78,176.77,3.11109124]
[1752968131233,0.06,176.78,176.77,3.11109124]
[1752968131534,0.06,176.78,176.77,19.89577521]
[1752968131714,0.73,176.78,176.77,19.89577521]
[1752968134564,0.06,176.78,176.77,19.89577521]
[1752968135561,0.06,176.78,176.77,26.14284371]
[1752968136945,0.06,176.78,176.77,65.64284371]
[1752968137139,0.06,176.78,176.77,62.53175247]
[1752968137345,0.06,176.78,176.77,26.14284371]
[1752968137558,0.06,176.78,176.77,65.64284371]
[1752968138437,0.06,176.78,176.77,65.05284371]
[1752968138764,0.06,176.78,176.77,65.64284371]
[1752968140347,0.67,176.85,176.78,16.78468397]
[1752968140543,0.67,176.85,176.84,3.11109124]
[1752968141468,0.77,176.88,176.84,40.19]
[1752968141641,0.06,176.86,176.85,19.89577521]
[1752968141841,0.06,176.86,176.85,56.44468397]
[1752968142051,0.73,176.86,176.83,16.78468397]
[1752968142285,0.73,176.86,176.85,16.78468397]
[1752968142491,0.73,176.86,176.84,39.7]
[1752968142492,0.06,176.86,176.84,39.7]
[1752968142786,0.06,176.86,176.85,3.11109124]
[1752968142959,0.06,176.86,176.85,23.00686645]
[1752968143300,0.06,176.86,176.85,16.78468397]
[1752968143597,0.73,176.86,176.85,3.11109124]
[1752968143751,0.73,176.86,176.85,43.17109124]
[1752968144254,0.06,176.86,176.85,63.06686645]
[1752968145252,0.06,176.86,176.85,59.95577521]
[1752968146784,0.06,176.86,176.85,63.06686645]
[1752968147313,0.06,176.86,176.85,62.49919344]
[1752968147595,0.06,176.86,176.85,68.82137592]
[1752968148991,0.06,176.86,176.85,68.84137592]
[1752968149195,0.06,176.86,176.85,19.89577521]
[1752968149499,0.73,176.86,176.85,60.05577521]
[1752968151011,0.06,176.86,176.85,60.05577521]
[1752968152512,0.06,176.86,176.85,19.89577521]
[1752968152688,0.06,176.86,176.85,60.03577521]
[1752968155916,0.06,176.86,176.85,19.89577521]
[1752968156107,0.06,176.86,176.85,60.05577521]
[1752968157220,0.06,176.86,176.85,56.94468397]
[1752968157525,0.75,176.86,176.85,56.94468397]
[1752968157727,0.75,176.86,176.85,60.05577521]
[1752968158020,0.06,176.86,176.85,60.05577521]
[1752968161325,0.06,176.86,176.85,56.94468397]
[1752968161627,0.06,176.86,176.85,60.05577521]
[1752968162427,0.75,176.86,176.85,60.05577521]
[1752968163002,0.75,176.86,176.85,19.89577521]
[1752968163202,0.75,176.86,176.85,60.05577521]
[1752968163403,0.75,176.86,176.85,16.78468397]
[1752968163604,0.75,176.86,176.85,60.11577521]
[1752968164125,0.06,176.86,176.85,57.00468397]
[1752968164463,0.06,176.86,176.85,60.11577521]
[1752968164807,0.75,176.86,176.85,57.00468397]
[1752968165114,0.75,176.86,176.85,60.11577521]
[1752968167020,6.40418975,176.86,176.85,57.00468397]
[1752968167216,6.40418975,176.86,176.8,0.59]
[1752968167535,6.40418975,176.86,176.78,26.0]
[1752968167536,0.69,176.85,176.83,16.78468397]
[1752968167734,0.69,176.85,176.83,57.04468397]
[1752968168039,0.69,176.85,176.83,16.78468397]
[1752968168445,6.34456716,176.85,176.83,16.78468397]
[1752968168624,0.69,176.84,176.83,19.89577521]
[1752968168824,0.69,176.85,176.83,19.89577521]
[1752968169137,0.69,176.85,176.84,3.11109124]
[1752968169323,5.71428247,176.86,176.83,57.06468397]
[1752968169324,5.71428247,176.86,176.83,60.17577521]
[1752968169638,0.69,176.84,176.83,57.06468397]
[1752968169838,0.69,176.84,176.83,16.78468397]
[1752968170039,6.34482922,176.84,176.82,3.11109124]
[1752968170226,0.69,176.83,176.82,16.78468397]
[1752968171743,0.69,176.83,176.82,19.89577521]
[1752968172539,0.69,176.83,176.82,16.78468397]
[1752968172740,0.69,176.83,176.82,19.89577521]
[1752968174467,0.69,176.83,176.82,16.78468397]
[1752968174753,6.34514901,176.83,176.81,16.78468397]
[1752968174951,0.69,176.82,176.81,19.89577521]
[1752968179656,6.34450947,176.85,176.81,19.89577521]
[1752968179878,0.69,176.84,176.82,3.11109124]
[1752968180063,5.65450947,176.85,176.82,3.11109124]
[1752968180231,0.69,176.83,176.82,3.11109124]
[1752968181961,0.69,176.83,176.8,16.78468397]
[1752968182168,0.69,176.83,176.82,3.11109124]
[1752968182767,6.34514901,176.83,176.82,3.11109124]
[1752968183347,6.34514901,176.83,176.8,16.78468397]
[1752968183563,6.34514901,176.83,176.82,3.11109124]
[1752968185674,6.34514901,176.83,176.8,16.78468397]
[1752968185842,6.34514901,176.83,176.82,3.11109124]
[1752968187864,6.34514901,176.83,176.79,0.72567235]
[1752968188062,0.72,176.82,176.79,3.83676359]
[1752968188535,0.72,176.82,176.8,3.11109124]
[1752968188739,0.72,176.81,176.8,3.11109124]
[1752968189457,5.65514901,176.83,176.8,3.11109124]
[1752968189458,0.72,176.84,176.81,16.78468397]
[1752968189655,0.72,176.84,176.83,3.11109124]
[1752968189964,0.72,176.85,176.83,3.11109124]
[1752968190171,0.72,176.85,176.84,3.11109124]
[1752968190969,6.37450947,176.85,176.84,3.11109124]
[1752968191142,0.72,176.85,176.83,3.11109124]
[1752968191543,6.3745399,176.85,176.83,3.11109124]
[1752968191743,0.72,176.85,176.84,3.11109124]
[1752968192958,0.06,176.86,176.84,3.11109124]
[1752968193271,0.78,176.86,176.84,3.11109124]
[1752968195566,0.72,176.85,176.81,5.65569978]
[1752968195739,5.71420045,176.86,176.84,3.11109124]
[1752968195945,0.06,176.86,176.84,3.11109124]
[1752968196271,0.06,176.86,176.82,16.78468397]
[1752968196470,0.78,176.86,176.84,3.11109124]
[1752968197160,0.72,176.85,176.84,3.11109124]
[1752968197474,0.06,176.86,176.84,19.89577521]
[1752968197645,0.06,176.86,176.85,3.11109124]
[1752968198569,0.06,176.86,176.85,20.48577521]
[1752968199071,0.06,176.86,176.85,19.89577521]
[1752968199251,0.78,176.86,176.85,19.89577521]
[1752968199983,0.06,176.86,176.85,19.89577521]
[1752968201279,0.78,176.86,176.85,19.89577521]
[1752968202573,0.06,176.86,176.85,19.89577521]
[1752968203555,0.78,176.86,176.85,19.89577521]
[1752968205271,6.43418975,176.86,176.85,19.89577521]
[1752968205650,0.78,176.86,176.85,19.89577521]
[1752968212060,0.78,176.86,176.85,16.78468397]
[1752968212261,0.78,176.86,176.85,19.89577521]
[1752968212761,0.06,176.86,176.85,19.89577521]
[1752968213583,0.77,176.86,176.85,19.89577521]
[1752968215069,0.77,176.86,176.85,18.7725111]
[1752968215668,0.06,176.86,176.85,18.7725111]
[1752968215977,0.06,176.86,176.85,16.78468397]
[1752968216167,0.06,176.86,176.85,18.7725111]
[1752968216576,0.06,176.86,176.85,16.78468397]
[1752968216780,0.77,176.86,176.85,18.7725111]
[1752968217010,0.06,176.86,176.85,18.7725111]
[1752968217970,0.77,176.86,176.85,18.7725111]
[1752968220761,0.06,176.86,176.85,18.7725111]
[1752968222664,0.06,176.86,176.85,27.31381962]
[1752968222865,0.06,176.86,176.85,32.96832909]
[1752968223085,0.06,176.86,176.85,73.34832909]
[1752968225072,0.06,176.86,176.85,69.61791072]
[1752968229082,0.06,176.87,176.86,16.78468397]
[1752968229375,0.06,176.87,176.86,20.47904261]
[1752968230798,0.06,176.87,176.86,26.13323236]
[1752968234081,0.06,176.87,176.86,19.88904261]
[1752968234682,0.06,176.87,176.86,25.54323236]
[1752968235280,0.77,176.87,176.86,19.88904261]
[1752968235793,0.06,176.87,176.86,19.88904261]
[1752968236971,0.06,176.87,176.86,25.54323236]
[1752968239387,0.1,176.88,176.86,26.13323236]
[1752968239581,0.1,176.88,176.87,60.73904261]
[1752968240800,0.1,176.88,176.87,66.39291268]
[1752968241697,0.06,176.9,176.88,16.78468397]
[1752968241897,0.06,176.9,176.89,60.12904261]
[1752968242279,0.06,176.9,176.89,60.71904261]
[1752968242777,0.06,176.9,176.89,65.78227343]
[1752968242980,0.72,176.9,176.89,65.78227343]
[1752968243196,0.72,176.9,176.89,16.78468397]
[1752968243484,0.72,176.9,176.89,19.88904261]
[1752968245705,0.72,176.9,176.89,3.10435864]
[1752968246487,0.72,176.9,176.87,16.78468397]
[1752968246789,0.72,176.9,176.89,3.10435864]
[1752968246790,6.37291124,176.9,176.89,3.10435864]
[1752968246987,6.37291124,176.9,176.89,1.98708979]
[1752968247402,6.37291124,176.9,176.87,16.78468397]
[1752968247608,0.66,176.89,176.85,16.78468397]
[1752968247913,0.66,176.89,176.88,1.98708979]
[1752968248618,0.66,176.89,176.87,1.98708979]
[1752968248784,5.65355042,176.88,176.87,1.98708979]
[1752968248984,6.31355042,176.88,176.87,1.98708979]
[1752968250919,0.66,176.88,176.87,1.98708979]
[1752968251099,0.66,176.88,176.83,16.78468397]
[1752968251486,0.66,176.88,176.87,3.1056561]
[1752968253925,6.31355042,176.88,176.87,3.1056561]
[1752968255606,0.66,176.88,176.86,0.03]
[1752968255921,0.66,176.87,176.86,0.03]
[1752968257223,0.66,176.87,176.86,3.1356561]
[1752968258294,0.66,176.87,176.86,0.03]
[1752968258495,0.66,176.87,176.86,3.1356561]
[1752968261024,0.66,176.87,176.86,0.03]
[1752968261233,0.66,176.87,176.86,3.1356561]
[1752968265021,0.66,176.87,176.86,0.03]
[1752968265220,0.66,176.87,176.86,3.1356561]
[1752968266140,6.31387007,176.87,176.86,3.1356561]
[1752968266828,6.31387007,176.87,176.86,0.03]
[1752968267010,6.31387007,176.87,176.86,3.1356561]
[1752968267532,6.31387007,176.87,176.86,0.03]
[1752968267732,7.94037007,176.87,176.86,0.03]
[1752968272839,48.12037007,176.87,176.86,0.03]
[1752968273534,74.12037007,176.87,176.86,0.03]
[1752968276826,72.49387007,176.87,176.86,2.01830646]
[1752968277093,72.49387007,176.87,176.86,0.03]
[1752968279735,74.09437007,176.87,176.86,1e-08]
[1752968279932,76.08267653,176.87,176.86,1e-08]
[1752968280439,50.08267653,176.87,176.86,1e-08]
[1752968282038,7.91437007,176.87,176.86,1e-08]
[1752968282337,48.15437007,176.87,176.86,1e-08]
[1752968282743,50.14267653,176.87,176.86,1e-08]
[1752968291070,48.15437007,176.87,176.86,1e-08]
[1752968291259,50.14267653,176.87,176.86,1e-08]
[1752968291837,48.15437007,176.87,176.86,1e-08]
[1752968292063,50.14267653,176.87,176.86,1e-08]
[1752968292970,7.91437007,176.87,176.86,1e-08]
[1752968293151,9.90267653,176.87,176.86,1e-08]
[1752968293349,50.08267653,176.87,176.86,1e-08]
[1752968295074,6.31387007,176.87,176.86,1e-08]
[1752968295261,46.47387007,176.87,176.86,1e-08]
[1752968296274,48.46217653,176.87,176.86,1e-08]
[1752968297482,46.47387007,176.87,176.86,1e-08]
[1752968299075,48.46217653,176.87,176.86,1e-08]
[1752968299275,56.65827653,176.87,176.86,1e-08]
[1752968301377,26.0,176.84,176.79,0.72567235]
[1752968301567,40.14,176.83,176.79,0.72567235]
[1752968301750,1.98830646,176.82,176.79,0.72567235]
[1752968301950,40.8,176.81,176.79,0.72567235]
[1752968302261,0.66,176.8,176.79,0.72567235]
[1752968302850,6.31610859,176.8,176.79,0.72567235]
[1752968305281,10.74586484,176.8,176.79,0.72567235]
[1752968305585,6.31610859,176.8,176.79,0.72567235]
[1752968307053,46.41610859,176.8,176.79,0.72567235]
[1752968308994,50.88243877,176.8,176.79,0.72567235]
[1752968309695,45.73610859,176.8,176.79,0.72567235]
[1752968309874,5.65610859,176.8,176.79,0.72567235]
[1752968310071,45.73610859,176.8,176.79,0.72567235]
[1752968311385,26.0,176.81,176.79,3.30397881]
[1752968311610,26.0,176.81,176.8,2.57830646]
[1752968311611,40.08,176.81,176.8,2.57830646]
[1752968313075,40.08,176.81,176.8,3.69774285]
[1752968314721,5.65568118,176.82,176.8,3.69774285]
[1752968315010,45.71526269,176.83,176.81,3.10774285]
[1752968315203,45.71526269,176.83,176.82,3.10774285]
[1752968315410,45.71526269,176.83,176.82,3.69774285]
[1752968317212,26.76,176.86,176.82,3.69774285]
[1752968317399,40.06,176.85,176.84,3.10774285]
[1752968318093,45.7146174,176.85,176.84,3.10774285]
[1752968319282,40.06,176.85,176.84,3.69774285]
[1752968319999,40.02,176.85,176.84,3.69774285]
[1752968320398,40.08,176.86,176.84,3.69774285]
[1752968320604,45.73418975,176.86,176.82,0.59]
[1752968320798,0.7,176.85,176.84,3.10774285]
[1752968321000,6.35450947,176.85,176.84,3.10774285]
[1752968325913,5.65450947,176.85,176.84,3.10774285]
[1752968331905,45.73431503,176.86,176.84,3.10774285]
[1752968332221,45.73431503,176.86,176.85,3.10774285]
[1752968332941,45.73431503,176.86,176.85,1.98796354]
[1752968336508,40.08,176.86,176.85,1.98796354]
[1752968337233,45.73418975,176.86,176.85,1.98796354]
[1752968340244,46.44418975,176.86,176.85,1.98796354]
[1752968342667,45.73422027,176.86,176.83,0.59]
[1752968342846,45.55422027,176.86,176.85,1.98796354]
[1752968343041,45.55422027,176.86,176.82,0.03]
[1752968343248,45.55422027,176.86,176.84,1.98796354]
[1752968343850,0.71,176.85,176.84,1.98796354]
[1752968344358,6.36450947,176.85,176.84,1.98796354]
[1752968347759,5.65450947,176.85,176.84,1.98796354]
[1752968348242,5.65450947,176.85,176.82,0.62]
[1752968348545,39.82,176.84,176.82,0.62]
[1752968349465,39.82,176.84,176.82,0.03]
[1752968349649,39.82,176.84,176.83,1.98796354]
[1752968352368,46.18482922,176.84,176.83,1.98796354]
[1752968352565,46.18482922,176.84,176.82,0.03]
[1752968352868,46.18482922,176.84,176.83,1.98796354]
[1752968355360,46.18482922,176.84,176.82,2.01796354]
[1752968355570,0.71,176.83,176.82,0.03]
[1752968357380,6.36514901,176.83,176.82,0.03]
[1752968358691,6.36514901,176.83,176.82,2.01796354]
[1752968358974,45.41514901,176.83,176.82,2.01796354]
[1752968359366,46.12514901,176.83,176.82,2.01796354]
[1752968366091,46.12514901,176.83,176.82,0.03]
[1752968366682,72.12514901,176.83,176.82,0.03]
[1752968373013,32.36514901,176.83,176.82,0.03]
[1752968373188,72.08514901,176.83,176.82,0.03]
[1752968375593,71.37514901,176.83,176.82,2.01796354]
[1752968376495,71.37514901,176.83,176.82,2.60796354]
[1752968378304,65.72,176.83,176.82,2.60796354]
[1752968378881,71.37514901,176.83,176.82,2.01796354]
[1752968380294,39.72,176.83,176.82,2.60796354]
[1752968380892,5.65492691,176.84,176.82,2.60796354]
[1752968380893,39.7,176.84,176.82,2.60796354]
[1752968381200,39.7,176.84,176.83,2.57796354]
[1752968381409,0.06,176.86,176.83,1.98796354]
[1752968381699,39.76,176.86,176.85,1.98796354]
[1752968381888,39.76,176.86,176.85,2.57796354]
[1752968381889,0.06,176.86,176.85,2.57796354]
[1752968385925,0.06,176.86,176.85,1.98796354]
[1752968389121,0.06,176.86,176.85,2.57796354]
[1752968389412,0.06,176.86,176.85,10.5298177]
[1752968390904,0.06,176.87,176.86,16.78468397]
[1752968391108,0.06,176.87,176.86,19.36264751]
[1752968391306,0.06,176.87,176.86,18.77264751]
[1752968391503,0.06,176.87,176.86,19.36264751]
[1752968392914,0.06,176.87,176.86,18.77264751]
[1752968393311,0.06,176.87,176.86,1.98796354]
[1752968393505,0.74,176.87,176.86,1.98796354]
[1752968394920,6.39387007,176.87,176.86,1.98796354]
[1752968396504,6.39387007,176.87,176.83,16.78468397]
[1752968396826,6.39387007,176.87,176.86,1.98796354]
[1752968397039,6.39387007,176.87,176.83,17.37468397]
[1752968397208,6.39387007,176.87,176.86,3.10557823]
[1752968397947,0.06,176.87,176.86,3.10557823]
[1752968398908,0.06,176.87,176.86,3.69557823]
[1752968400034,0.06,176.87,176.84,0.59]
[1752968400238,0.06,176.87,176.86,3.10557823]
[1752968401611,0.74,176.87,176.86,3.10557823]
[1752968403060,6.39387007,176.87,176.86,3.10557823]
[1752968403838,5.71387007,176.87,176.86,3.10557823]
[1752968405235,0.06,176.87,176.86,3.10557823]
[1752968407537,0.06,176.87,176.86,3.69557823]
[1752968409839,0.06,176.87,176.86,26.13445195]
[1752968410210,0.06,176.87,176.86,20.4802622]
[1752968410932,0.06,176.87,176.86,26.13445195]
[1752968411436,0.06,176.87,176.86,20.4802622]
[1752968412937,0.06,176.87,176.86,26.13445195]
[1752968413817,0.06,176.87,176.86,20.4802622]
[1752968414931,0.06,176.87,176.86,26.13445195]
[1752968416041,0.06,176.87,176.86,20.4802622]
[1752968417048,0.06,176.87,176.86,25.01563296]
[1752968417349,0.06,176.87,176.86,19.36144321]
[1752968419843,0.06,176.87,176.86,25.01563296]
[1752968423054,0.06,176.87,176.86,25.04563296]
[1752968423658,0.06,176.87,176.86,19.39144321]
[1752968424858,0.06,176.87,176.86,25.04563296]
[1752968428342,0.06,176.88,176.87,18.77144321]
[1752968434668,0.06,176.88,176.87,1.98675924]
[1752968434669,0.77,176.88,176.87,1.98675924]
[1752968435872,0.06,176.88,176.87,1.98675924]
[1752968437759,0.77,176.88,176.87,1.98675924]
[1752968438981,6.42355042,176.88,176.87,1.98675924]
[1752968440763,6.42355042,176.88,176.86,0.03]
[1752968440971,5.71355042,176.88,176.87,1.98675924]
[1752968441278,0.06,176.88,176.87,1.98675924]
[1752968441581,0.77,176.88,176.87,1.98675924]
[1752968443483,6.42355042,176.88,176.87,1.98675924]
[1752968444976,6.42355042,176.88,176.87,2.01675924]
[1752968448385,6.42355042,176.88,176.87,0.03]
[1752968448582,6.42355042,176.88,176.87,2.01675924]
[1752968457901,6.42355042,176.88,176.87,0.03]
[1752968458098,6.42355042,176.88,176.87,2.01675924]
[1752968459269,6.42355042,176.88,176.87,0.03]
[1752968459476,6.42355042,176.88,176.87,2.01675924]
[1752968460185,6.42355042,176.88,176.87,0.03]
[1752968460384,6.42355042,176.88,176.87,2.01675924]
[1752968461878,6.42355042,176.88,176.87,0.03]
[1752968463201,32.42355042,176.88,176.87,0.03]
[1752968464674,72.14355042,176.88,176.87,2.01675924]
[1752968468021,72.14355042,176.88,176.87,0.03]
[1752968468191,72.14355042,176.88,176.87,2.01675924]
[1752968469397,72.14355042,176.88,176.87,0.03]
[1752968469695,72.14355042,176.88,176.87,2.01675924]
[1752968470208,72.09355042,176.88,176.87,2.01675924]
[1752968471404,32.37355042,176.88,176.87,2.01675924]
[1752968474412,5.71355042,176.88,176.87,2.01675924]
[1752968477303,0.06,176.88,176.87,2.01675924]
[1752968477509,0.06,176.88,176.87,2.60675924]
[1752968479317,0.06,176.88,176.87,2.01675924]
[1752968481712,0.06,176.88,176.87,0.03]
[1752968481904,0.06,176.88,176.87,2.01675924]
[1752968483720,0.74,176.88,176.87,2.01675924]
[1752968483902,40.44,176.88,176.87,0.03]
[1752968486205,46.09355042,176.88,176.87,0.03]
[1752968487201,72.09355042,176.88,176.87,0.03]
[1752968487395,74.08030966,176.88,176.87,0.03]
[1752968488623,72.09355042,176.88,176.87,0.03]
[1752968491242,32.39355042,176.88,176.87,0.03]
[1752968491529,72.09355042,176.88,176.87,0.03]
[1752968495315,32.39355042,176.88,176.87,0.03]
[1752968495528,72.09355042,176.88,176.87,0.03]
[1752968498737,72.09355042,176.88,176.87,2.01675924]
[1752968500859,39.76,176.88,176.87,2.01675924]
[1752968501025,39.76,176.88,176.87,2.60675924]
[1752968501210,39.76,176.88,176.87,2.01675924]
[1752968503143,45.41355042,176.88,176.87,2.01675924]
[1752968505349,5.71355042,176.88,176.87,2.01675924]
[1752968505523,5.71355042,176.88,176.87,2.60675924]
[1752968505841,5.71355042,176.88,176.87,2.01675924]
[1752968507950,6.39355042,176.88,176.87,0.03]
[1752968508155,6.39355042,176.88,176.87,2.01675924]
[1752968508629,6.39355042,176.88,176.87,0.03]
[1752968508825,6.39355042,176.88,176.87,2.01675924]
[1752968510726,5.71355042,176.88,176.87,2.01675924]
[1752968511261,0.06,176.88,176.87,2.60675924]
[1752968512965,0.06,176.88,176.87,3.13453631]
[1752968513256,0.06,176.88,176.87,3.72453631]
[1752968513444,0.06,176.88,176.87,3.13453631]
[1752968514941,0.06,176.88,176.87,3.72453631]
[1752968515656,0.06,176.88,176.87,3.13453631]
[1752968518759,0.06,176.88,176.87,3.72453631]
[1752968519545,0.06,176.88,176.87,3.13453631]
[1752968523450,0.78,176.88,176.87,0.03]
[1752968523762,26.78,176.88,176.87,0.03]
[1752968523939,26.78,176.88,176.87,3.13453631]
[1752968524137,66.46,176.88,176.87,0.03]
[1752968525362,72.11355042,176.88,176.87,3.13453631]
[1752968527245,32.43355042,176.88,176.87,3.13453631]
[1752968527455,72.11355042,176.88,176.87,3.13453631]
[1752968533075,72.11355042,176.88,176.87,2.01752639]
[1752968535953,72.11355042,176.88,176.87,0.03]
[1752968538368,72.13355042,176.88,176.87,2.01752639]
[1752968538747,72.13355042,176.88,176.87,0.03]
[1752968538952,72.13355042,176.88,176.87,3.13586165]
[1752968539372,45.41355042,176.88,176.87,3.13586165]
[1752968540357,39.76,176.88,176.87,3.13586165]
[1752968541577,0.06,176.88,176.87,3.13586165]
[1752968542782,0.78,176.88,176.87,0.03]
[1752968542962,0.78,176.88,176.87,3.13586165]
[1752968543677,6.43355042,176.88,176.87,3.13586165]
[1752968545372,6.43355042,176.88,176.87,0.03]
[1752968555677,32.43355042,176.88,176.87,0.03]
[1752968567309,72.11355042,176.88,176.87,0.03]
[1752968575019,31.71355042,176.88,176.87,0.03]
[1752968575316,39.74,176.88,176.87,2.60822145]
[1752968575620,45.39355042,176.88,176.87,2.60822145]
[1752968577106,39.74,176.88,176.87,2.60822145]
[1752968582024,39.74,176.88,176.87,2.01822145]
[1752968584436,39.74,176.88,176.87,0.03]
[1752968584615,39.74,176.88,176.87,2.01822145]
[1752968584616,45.39355042,176.88,176.87,2.01822145]
[1752968592127,46.09355042,176.88,176.87,2.01822145]
[1752968592466,46.09355042,176.88,176.87,0.03]
[1752968592628,46.09355042,176.88,176.87,2.01822145]
[1752968594243,6.41355042,176.88,176.87,2.01822145]
[1752968594545,46.07355042,176.88,176.87,2.01822145]
[1752968595652,46.07355042,176.88,176.87,0.03]
[1752968595945,46.07355042,176.88,176.87,2.01822145]
[1752968597143,46.07355042,176.88,176.87,0.03]
[1752968597329,6.41355042,176.88,176.87,2.01822145]
[1752968597635,46.07355042,176.88,176.87,2.01822145]
[1752968598748,6.41355042,176.88,176.87,2.01822145]
[1752968599244,46.07355042,176.88,176.87,2.01822145]
[1752968599982,45.37355042,176.88,176.87,2.01822145]
[1752968603052,45.37355042,176.88,176.87,0.03]
[1752968603227,46.09355042,176.88,176.87,2.01822145]
[1752968604342,46.09355042,176.88,176.87,0.03]
[1752968604553,46.09355042,176.88,176.87,2.01822145]
[1752968606850,6.43355042,176.88,176.87,2.01822145]
[1752968607024,46.09355042,176.88,176.87,2.01822145]
[1752968611867,46.09355042,176.88,176.87,0.03]
[1752968612035,46.09355042,176.88,176.87,2.01822145]
[1752968624070,46.07355042,176.88,176.87,2.01822145]
[1752968625868,39.7,176.88,176.87,2.01822145]
[1752968627168,39.7,176.88,176.87,2.60822145]
[1752968627341,0.06,176.88,176.87,2.60822145]
[1752968644357,0.06,176.88,176.87,2.01822145]
[1752968646685,0.06,176.88,176.87,19.39290542]
[1752968646989,0.06,176.88,176.87,18.80290542]
[1752968648990,0.06,176.88,176.87,19.39290542]
[1752968652388,0.06,176.88,176.87,25.04677549]
[1752968655366,0.77,176.88,176.87,16.81468397]
[1752968655567,0.77,176.88,176.87,18.80290542]
[1752968656294,0.06,176.88,176.87,18.80290542]
[1752968656490,0.77,176.88,176.87,18.80290542]
[1752968659896,0.06,176.88,176.87,18.80290542]
[1752968663599,0.74,176.88,176.87,2.01822145]
[1752968670213,0.06,176.88,176.87,2.01822145]
[1752968674921,0.06,176.88,176.87,18.80290542]
[1752968679612,0.06,176.88,176.87,19.39290542]
[1752968679810,0.06,176.88,176.87,18.80290542]
[1752968680019,0.06,176.88,176.87,25.04677549]
[1752968681425,0.06,176.88,176.87,22.46855404]
[1752968681727,0.06,176.88,176.87,24.45677549]
[1752968686127,0.06,176.88,176.87,25.04677549]
[1752968687446,0.06,176.88,176.87,18.80290542]
[1752968687813,0.06,176.88,176.87,24.45677549]
[1752968688936,0.06,176.88,176.87,25.04677549]
[1752968690345,0.06,176.88,176.87,24.45677549]
[1752968691949,0.06,176.88,176.87,18.80290542]
[1752968694589,0.06,176.88,176.87,16.81468397]
[1752968694746,0.73,176.88,176.87,18.80290542]
[1752968698553,0.06,176.88,176.87,18.80290542]
[1752968701162,0.06,176.88,176.87,25.04677549]
[1752968701456,0.06,176.88,176.87,64.58677549]
[1752968702678,0.06,176.9,176.87,64.58677549]
[1752968702862,0.06,176.9,176.89,18.77290542]
[1752968704153,0.06,176.9,176.89,24.42613624]
[1752968713764,0.73,176.9,176.89,24.42613624]
[1752968713972,0.06,176.9,176.89,24.42613624]
[1752968718095,0.73,176.9,176.89,18.77290542]
[1752968722272,0.06,176.9,176.89,18.77290542]
[1752968722475,0.06,176.9,176.89,24.42613624]
[1752968722808,0.06,176.9,176.89,18.77290542]
[1752968723100,0.73,176.9,176.89,1.98822145]
[1752968723815,6.38297644,176.9,176.87,0.03]
[1752968723975,12.72947644,176.9,176.88,1.98822145]
[1752968724175,0.68,176.89,176.88,1.98822145]
[1752968726104,6.33323082,176.89,176.88,1.98822145]
[1752968728381,0.06,176.9,176.88,1.98822145]
[1752968728603,0.06,176.9,176.89,1.98822145]